[Event "*** SCC Grand Prix: Titled Tuesday Blitz"]
[Site "Chess.com"]
[Date "2020.07.14"]
[Round "2"]
[White "dcremisi"]
[Black "Harsha_Bharathakoti"]
[Result "1/2-1/2"]
[WhiteElo "2434"]
[BlackElo "2774"]
[TimeControl "180+1"]
[EndTime "10:18:01 PDT"]
[Termination "Game drawn by repetition"]

1. d4 {[%clk 0:03:00.9]} 1... d5 {[%clk 0:03:00]} 2. c4 {[%clk 0:03:00.6]} 2...
e6 {[%clk 0:03:00]} 3. Nc3 {[%clk 0:03:00]} 3... c6 {[%clk 0:03:00.2]} 4. e4
{[%clk 0:02:59.2]} 4... dxe4 {[%clk 0:03:01.1]} 5. Nxe4 {[%clk 0:02:59.4]} 5...
Bb4+ {[%clk 0:03:01.8]} 6. Nc3 {[%clk 0:02:59.9]} 6... e5 {[%clk 0:03:02.2]} 7.
a3 {[%clk 0:02:51.6]} 7... Bxc3+ {[%clk 0:03:00.9]} 8. bxc3 {[%clk 0:02:52]}
8... Qa5 {[%clk 0:02:53.8]} 9. Bd2 {[%clk 0:02:51.7]} 9... Nf6 {[%clk
0:02:46.8]} 10. Nf3 {[%clk 0:02:51.2]} 10... e4 {[%clk 0:02:46.3]} 11. Ne5
{[%clk 0:02:51.4]} 11... Nbd7 {[%clk 0:02:46.4]} 12. Nxd7 {[%clk 0:02:50.6]}
12... Bxd7 {[%clk 0:02:47.3]} 13. Be2 {[%clk 0:02:49.3]} 13... O-O {[%clk
0:02:45.7]} 14. O-O {[%clk 0:02:49.9]} 14... Rfe8 {[%clk 0:02:35.3]} 15. Qb3
{[%clk 0:02:45.3]} 15... b6 {[%clk 0:02:35.2]} 16. Qb4 {[%clk 0:02:44]} 16...
Qf5 {[%clk 0:02:32.1]} 17. a4 {[%clk 0:02:43.2]} 17... c5 {[%clk 0:02:29.4]} 18.
Qb2 {[%clk 0:02:39.5]} 18... Qg6 {[%clk 0:02:29.4]} 19. Kh1 {[%clk 0:02:39]}
19... Bg4 {[%clk 0:02:30.1]} 20. Be3 {[%clk 0:02:36.9]} 20... Qh5 {[%clk
0:02:20.7]} 21. Bxg4 {[%clk 0:02:32]} 21... Nxg4 {[%clk 0:02:21.6]} 22. h3
{[%clk 0:02:32.5]} 22... Rac8 {[%clk 0:02:01.8]} 23. Qe2 {[%clk 0:02:28.2]}
23... Nf6 {[%clk 0:02:00.9]} 24. Qxh5 {[%clk 0:02:28.3]} 24... Nxh5 {[%clk
0:02:01.8]} 25. dxc5 {[%clk 0:02:28.2]} 25... bxc5 {[%clk 0:02:02.7]} 26. Rab1
{[%clk 0:02:27.6]} 26... Re7 {[%clk 0:01:54.9]} 27. Bxc5 {[%clk 0:02:23.6]}
27... Rec7 {[%clk 0:01:54.7]} 28. Bd4 {[%clk 0:02:23.5]} 28... Rxc4 {[%clk
0:01:55]} 29. Bxa7 {[%clk 0:02:19.3]} 29... Rxa4 {[%clk 0:01:54.5]} 30. Bd4
{[%clk 0:02:19.5]} 30... Nf4 {[%clk 0:01:54.8]} 31. Rbe1 {[%clk 0:02:19.3]}
31... f5 {[%clk 0:01:54.6]} 32. f3 {[%clk 0:02:17]} 32... Nd3 {[%clk 0:01:54.9]}
33. Re3 {[%clk 0:02:16.3]} 33... Re8 {[%clk 0:01:54.7]} 34. fxe4 {[%clk
0:02:16.6]} 34... fxe4 {[%clk 0:01:55.6]} 35. Kh2 {[%clk 0:02:08.8]} 35... Ra6
{[%clk 0:01:53.9]} 36. Rg3 {[%clk 0:02:00.2]} 36... Rg6 {[%clk 0:01:50.8]} 37.
Rxg6 {[%clk 0:02:00.4]} 37... hxg6 {[%clk 0:01:51.7]} 38. Be3 {[%clk 0:01:45.8]}
38... Rc8 {[%clk 0:01:51.1]} 39. Bd4 {[%clk 0:01:45.5]} 39... Re8 {[%clk
0:01:47.2]} 40. Be3 {[%clk 0:01:43.3]} 40... Ne5 {[%clk 0:01:47.7]} 41. Re1
{[%clk 0:01:34]} 41... Nc4 {[%clk 0:01:47.4]} 42. Kg3 {[%clk 0:01:33.7]} 42...
Kf7 {[%clk 0:01:45]} 43. Kf4 {[%clk 0:01:30.1]} 43... Nb2 {[%clk 0:01:30.6]} 44.
Rb1 {[%clk 0:01:23.5]} 44... Nd3+ {[%clk 0:01:31.5]} 45. Kg5 {[%clk 0:01:19.7]}
45... Re5+ {[%clk 0:01:31.2]} 46. Kg4 {[%clk 0:01:16.9]} 46... Re7 {[%clk
0:01:25.9]} 47. c4 {[%clk 0:01:06.6]} 47... Ne5+ {[%clk 0:01:24.4]} 48. Kf4
{[%clk 0:01:06.6]} 48... Nxc4 {[%clk 0:01:25.3]} 49. Re1 {[%clk 0:01:00.7]}
49... Nb2 {[%clk 0:01:23.8]} 50. Re2 {[%clk 0:00:58.2]} 50... Nd3+ {[%clk
0:01:24.7]} 51. Kg3 {[%clk 0:00:58.3]} 51... Ke6 {[%clk 0:01:20.8]} 52. Bg5
{[%clk 0:00:56.5]} 52... Rd7 {[%clk 0:01:17.1]} 53. Rxe4+ {[%clk 0:00:56.8]}
53... Kf5 {[%clk 0:01:17.8]} 54. Re7 {[%clk 0:00:40]} 54... Ne5 {[%clk
0:00:44.2]} 55. Rxd7 {[%clk 0:00:31.1]} 55... Nxd7 {[%clk 0:00:44.5]} 56. Bc1
{[%clk 0:00:30]} 56... Nf6 {[%clk 0:00:43.6]} 57. Kf2 {[%clk 0:00:29.4]} 57...
g5 {[%clk 0:00:43.8]} 58. g4+ {[%clk 0:00:26.6]} 58... Nxg4+ {[%clk 0:00:44]}
59. hxg4+ {[%clk 0:00:26.2]} 59... Kxg4 {[%clk 0:00:44.9]} 60. Kg2 {[%clk
0:00:27]} 60... g6 {[%clk 0:00:45]} 61. Ba3 {[%clk 0:00:27.9]} 61... Kf5 {[%clk
0:00:45.9]} 62. Bb2 {[%clk 0:00:28.8]} 62... g4 {[%clk 0:00:46.8]} 63. Ba3
{[%clk 0:00:29.7]} 63... Ke6 {[%clk 0:00:47.7]} 64. Bb2 {[%clk 0:00:30.1]} 64...
Kd7 {[%clk 0:00:48.6]} 65. Ba3 {[%clk 0:00:31]} 65... Kc6 {[%clk 0:00:49.5]} 66.
Bb2 {[%clk 0:00:31.9]} 66... Kd7 {[%clk 0:00:50.4]} 67. Ba3 {[%clk 0:00:32.8]}
67... Kc6 {[%clk 0:00:51.3]} 68. Bb2 {[%clk 0:00:32.4]} 68... Kd7 {[%clk
0:00:52.2]} 1/2-1/2

[Event "*** SCC Grand Prix: Titled Tuesday Blitz"]
[Site "Chess.com"]
[Date "2020.07.14"]
[Round "2"]
[White "chezzgirl04"]
[Black "RoelandPruijssers"]
[Result "0-1"]
[WhiteElo "2007"]
[BlackElo "2591"]
[TimeControl "180+1"]
[EndTime "10:18:02 PDT"]
[Termination "RoelandPruijssers won by checkmate"]

1. e4 {[%clk 0:03:00.9]} 1... d5 {[%clk 0:02:58.7]} 2. exd5 {[%clk 0:03:00.2]}
2... Qxd5 {[%clk 0:02:57.7]} 3. Nf3 {[%clk 0:03:00.5]} 3... Bg4 {[%clk
0:02:56.7]} 4. Be2 {[%clk 0:03:00.4]} 4... Nc6 {[%clk 0:02:56.5]} 5. d4 {[%clk
0:02:58.4]} 5... e5 {[%clk 0:02:54.4]} 6. c4 {[%clk 0:02:53.7]} 6... Qa5+ {[%clk
0:02:53.4]} 7. Bd2 {[%clk 0:02:53.4]} 7... Bb4 {[%clk 0:02:52.7]} 8. d5 {[%clk
0:02:41.6]} 8... Bxf3 {[%clk 0:02:50.8]} 9. Bxf3 {[%clk 0:02:38.8]} 9... Nd4
{[%clk 0:02:50.3]} 10. Nc3 {[%clk 0:02:38.5]} 10... Qa6 {[%clk 0:02:47.7]} 11.
b3 {[%clk 0:02:21.5]} 11... Qa5 {[%clk 0:02:41.4]} 12. Qc1 {[%clk 0:02:08.1]}
12... Nxf3+ {[%clk 0:02:27.2]} 13. gxf3 {[%clk 0:02:07.5]} 13... Qb6 {[%clk
0:02:02.6]} 14. Na4 {[%clk 0:02:00.9]} 14... Bxd2+ {[%clk 0:02:00.4]} 15. Qxd2
{[%clk 0:02:00.3]} 15... Qg6 {[%clk 0:01:58.5]} 16. O-O-O {[%clk 0:01:48.7]}
16... O-O-O {[%clk 0:01:53.2]} 17. Qe3 {[%clk 0:01:42.1]} 17... Kb8 {[%clk
0:01:51]} 18. Qxe5 {[%clk 0:01:36.3]} 18... Nf6 {[%clk 0:01:47]} 19. d6 {[%clk
0:01:32]} 19... cxd6 {[%clk 0:01:04.7]} 20. Rxd6 {[%clk 0:01:31.1]} 20... Ka8
{[%clk 0:01:04.5]} 21. Rhd1 {[%clk 0:01:28.6]} 21... Rxd6 {[%clk 0:01:01.9]} 22.
Qxd6 {[%clk 0:01:28.4]} 22... Qg5+ {[%clk 0:00:59.9]} 23. f4 {[%clk 0:01:25.9]}
23... Qf5 {[%clk 0:00:56.8]} 24. Nc5 {[%clk 0:01:10.8]} 24... Rc8 {[%clk
0:00:53.8]} 25. Nd3 {[%clk 0:00:47.2]} 25... Qa5 {[%clk 0:00:51.8]} 26. Kb2
{[%clk 0:00:42.2]} 26... Rd8 {[%clk 0:00:50.2]} 27. Qe5 {[%clk 0:00:32.1]} 27...
Qb6 {[%clk 0:00:49.2]} 28. c5 {[%clk 0:00:28.4]} 28... Qb5 {[%clk 0:00:47.4]}
29. Qc7 {[%clk 0:00:26.4]} 29... Re8 {[%clk 0:00:36.9]} 30. Ne5 {[%clk
0:00:22.6]} 30... Qe2+ {[%clk 0:00:35.8]} 31. Kc1 {[%clk 0:00:21.5]} 31... a6
{[%clk 0:00:17.2]} 32. c6 {[%clk 0:00:21.4]} 32... Qb5 {[%clk 0:00:15.5]} 33.
Rd8+ {[%clk 0:00:19.1]} 33... Rxd8 {[%clk 0:00:15.5]} 34. Qxd8+ {[%clk 0:00:19]}
34... Ka7 {[%clk 0:00:16.4]} 35. c7 {[%clk 0:00:17]} 35... Qf1+ {[%clk
0:00:16.3]} 36. Kb2 {[%clk 0:00:16.5]} 36... Qxf2+ {[%clk 0:00:16.4]} 37. Ka3
{[%clk 0:00:16]} 37... Qc5+ {[%clk 0:00:16.1]} 38. Kb2 {[%clk 0:00:14.4]} 38...
Qf2+ {[%clk 0:00:16.1]} 39. Ka3 {[%clk 0:00:14.2]} 39... Qc5+ {[%clk 0:00:16.1]}
40. b4 {[%clk 0:00:14.2]} 40... Qc3+ {[%clk 0:00:15.9]} 41. Ka4 {[%clk
0:00:11.6]} 41... b5+ {[%clk 0:00:16.3]} 42. Ka5 {[%clk 0:00:10.7]} 42... Qa3#
{[%clk 0:00:17.2]} 0-1

[Event "*** SCC Grand Prix: Titled Tuesday Blitz"]
[Site "Chess.com"]
[Date "2020.07.14"]
[Round "2"]
[White "MasterKroket"]
[Black "PauloCesarCosta_sad"]
[Result "0-1"]
[WhiteElo "2405"]
[BlackElo "2207"]
[TimeControl "180+1"]
[EndTime "10:18:02 PDT"]
[Termination "PauloCesarCosta_sad won on time"]

1. d4 {[%clk 0:03:00.9]} 1... d5 {[%clk 0:02:59.4]} 2. c4 {[%clk 0:03:01.3]}
2... c6 {[%clk 0:02:59.7]} 3. Nf3 {[%clk 0:03:01.5]} 3... e6 {[%clk 0:02:59.7]}
4. Nc3 {[%clk 0:03:01.9]} 4... dxc4 {[%clk 0:02:59.5]} 5. e3 {[%clk 0:03:00.9]}
5... b5 {[%clk 0:02:59.3]} 6. a4 {[%clk 0:03:00.6]} 6... Bb4 {[%clk 0:02:59.6]}
7. Bd2 {[%clk 0:02:59]} 7... a5 {[%clk 0:02:59.1]} 8. axb5 {[%clk 0:02:59.4]}
8... Bxc3 {[%clk 0:02:59.4]} 9. Bxc3 {[%clk 0:02:59.1]} 9... cxb5 {[%clk
0:03:00.3]} 10. b3 {[%clk 0:02:54.2]} 10... Bb7 {[%clk 0:02:57.2]} 11. bxc4
{[%clk 0:02:53.5]} 11... b4 {[%clk 0:02:57.7]} 12. Bb2 {[%clk 0:02:54.2]} 12...
Nf6 {[%clk 0:02:57.7]} 13. Bd3 {[%clk 0:02:54.5]} 13... Nbd7 {[%clk 0:02:57.7]}
14. O-O {[%clk 0:02:54.7]} 14... O-O {[%clk 0:02:57.5]} 15. Re1 {[%clk
0:02:54.7]} 15... Ne4 {[%clk 0:02:38.1]} 16. Nd2 {[%clk 0:02:52.1]} 16... Nxd2
{[%clk 0:02:29.9]} 17. Qxd2 {[%clk 0:02:53]} 17... Qc7 {[%clk 0:02:30.2]} 18. e4
{[%clk 0:02:47.2]} 18... e5 {[%clk 0:02:20.9]} 19. c5 {[%clk 0:02:10]} 19...
exd4 {[%clk 0:02:11.3]} 20. Bxd4 {[%clk 0:02:10.9]} 20... Rfd8 {[%clk 0:02:01]}
21. Qe3 {[%clk 0:01:46.5]} 21... Ne5 {[%clk 0:01:53.2]} 22. Be2 {[%clk
0:01:30.2]} 22... Nc6 {[%clk 0:01:45.8]} 23. Bb2 {[%clk 0:01:27.4]} 23... a4
{[%clk 0:01:40.7]} 24. Bc4 {[%clk 0:01:23.6]} 24... a3 {[%clk 0:01:36.2]} 25.
Bxg7 {[%clk 0:01:11.9]} 25... Kxg7 {[%clk 0:01:31.2]} 26. Qg5+ {[%clk 0:01:12]}
26... Kf8 {[%clk 0:01:19.1]} 27. Qh6+ {[%clk 0:01:01.3]} 27... Ke8 {[%clk
0:01:13.6]} 28. e5 {[%clk 0:00:55]} 28... Rd4 {[%clk 0:01:13.6]} 29. e6 {[%clk
0:00:51.5]} 29... f6 {[%clk 0:01:04.4]} 30. Bb5 {[%clk 0:00:41.9]} 30... Qe7
{[%clk 0:00:59.3]} 31. Qh5+ {[%clk 0:00:18.4]} 31... Kf8 {[%clk 0:00:53.8]} 32.
Re3 {[%clk 0:00:10.2]} 32... Nd8 {[%clk 0:00:42]} 33. Rg3 {[%clk 0:00:08.8]}
33... Nxe6 {[%clk 0:00:36.9]} 34. Qh6+ {[%clk 0:00:09.2]} 34... Ng7 {[%clk
0:00:32]} 35. Qxh7 {[%clk 0:00:09.9]} 35... Qf7 {[%clk 0:00:25.8]} 36. Re1
{[%clk 0:00:10.3]} 36... a2 {[%clk 0:00:19.6]} 37. Qh8+ {[%clk 0:00:03.8]} 37...
Qg8 {[%clk 0:00:19.3]} 38. Qh6 {[%clk 0:00:01.3]} 38... a1=Q {[%clk 0:00:18.1]}
39. Qxf6+ {[%clk 0:00:01.8]} 39... Qf7 {[%clk 0:00:16.4]} 0-1

[Event "*** SCC Grand Prix: Titled Tuesday Blitz"]
[Site "Chess.com"]
[Date "2020.07.14"]
[Round "2"]
[White "kirillshevchenko"]
[Black "YPradafah"]
[Result "1-0"]
[WhiteElo "2936"]
[BlackElo "2557"]
[TimeControl "180+1"]
[EndTime "10:18:03 PDT"]
[Termination "kirillshevchenko won by resignation"]

1. e4 {[%clk 0:03:00.9]} 1... c5 {[%clk 0:02:58.8]} 2. Nf3 {[%clk 0:03:00.5]}
2... Nc6 {[%clk 0:02:58]} 3. Nc3 {[%clk 0:02:59.3]} 3... Nf6 {[%clk 0:02:53.9]}
4. Bb5 {[%clk 0:02:57.7]} 4... e6 {[%clk 0:02:49.3]} 5. Bxc6 {[%clk 0:02:54.6]}
5... bxc6 {[%clk 0:02:46.4]} 6. e5 {[%clk 0:02:46.3]} 6... Nd5 {[%clk 0:02:46]}
7. Ne4 {[%clk 0:02:46.9]} 7... d6 {[%clk 0:02:46.4]} 8. Nxd6+ {[%clk 0:02:28.3]}
8... Bxd6 {[%clk 0:02:47.3]} 9. exd6 {[%clk 0:02:29.2]} 9... Qxd6 {[%clk
0:02:46.6]} 10. O-O {[%clk 0:02:29.3]} 10... c4 {[%clk 0:02:40.6]} 11. d3 {[%clk
0:02:24.7]} 11... cxd3 {[%clk 0:02:17]} 12. Qxd3 {[%clk 0:02:25.6]} 12... Qc7
{[%clk 0:01:58.2]} 13. c4 {[%clk 0:02:25]} 13... Nf6 {[%clk 0:01:53.6]} 14. Bg5
{[%clk 0:01:47.9]} 14... O-O {[%clk 0:01:44.3]} 15. Bxf6 {[%clk 0:01:47.4]}
15... gxf6 {[%clk 0:01:45.2]} 16. Rad1 {[%clk 0:01:45.4]} 16... c5 {[%clk
0:01:38.5]} 17. Nd2 {[%clk 0:00:54.3]} 17... Bb7 {[%clk 0:01:23.8]} 18. Qg3+
{[%clk 0:00:50.2]} 18... Qxg3 {[%clk 0:01:22.9]} 19. hxg3 {[%clk 0:00:51.1]}
19... Ba6 {[%clk 0:00:54.5]} 20. b3 {[%clk 0:00:41.3]} 20... Bb7 {[%clk
0:00:52.6]} 21. Nb1 {[%clk 0:00:36.2]} 21... Rfd8 {[%clk 0:00:51.9]} 22. Nc3
{[%clk 0:00:36.1]} 22... Kf8 {[%clk 0:00:51]} 23. Na4 {[%clk 0:00:34.3]} 23...
Rdc8 {[%clk 0:00:44.7]} 24. Rd6 {[%clk 0:00:29.3]} 24... Rc7 {[%clk 0:00:40.2]}
25. Rfd1 {[%clk 0:00:29.2]} 25... Rac8 {[%clk 0:00:39.8]} 26. f3 {[%clk
0:00:25.4]} 26... Ke7 {[%clk 0:00:39]} 27. Kf2 {[%clk 0:00:25.1]} 27... Rh8
{[%clk 0:00:18.2]} 28. R6d2 {[%clk 0:00:22.3]} 28... Ba6 {[%clk 0:00:14.5]} 29.
Rh1 {[%clk 0:00:20.8]} 29... Bc8 {[%clk 0:00:11.8]} 30. g4 {[%clk 0:00:21]}
30... Bd7 {[%clk 0:00:11.8]} 31. Nc3 {[%clk 0:00:20.2]} 31... Bc6 {[%clk
0:00:12.3]} 32. Rh5 {[%clk 0:00:19.8]} 32... Bd7 {[%clk 0:00:09.1]} 33. Ne4
{[%clk 0:00:19.5]} 33... e5 {[%clk 0:00:09.4]} 34. Rh6 {[%clk 0:00:17.5]} 34...
f5 {[%clk 0:00:09.3]} 35. Nf6 {[%clk 0:00:14.7]} 35... Be6 {[%clk 0:00:08.6]}
36. gxf5 {[%clk 0:00:14.6]} 36... Bxf5 {[%clk 0:00:09.5]} 37. Nd5+ {[%clk
0:00:14.8]} 37... Kd7 {[%clk 0:00:08]} 38. Ne3+ {[%clk 0:00:13.4]} 1-0

[Event "*** SCC Grand Prix: Titled Tuesday Blitz"]
[Site "Chess.com"]
[Date "2020.07.14"]
[Round "2"]
[White "Bazarov04"]
[Black "politeplayer"]
[Result "1-0"]
[WhiteElo "2599"]
[BlackElo "2202"]
[TimeControl "180+1"]
[EndTime "10:18:05 PDT"]
[Termination "Bazarov04 won on time"]

1. d4 {[%clk 0:03:00.5]} 1... Nf6 {[%clk 0:02:59.3]} 2. Nf3 {[%clk 0:03:00.7]}
2... e6 {[%clk 0:02:58.5]} 3. Bg5 {[%clk 0:03:00.9]} 3... c5 {[%clk 0:02:56.4]}
4. e3 {[%clk 0:03:00.3]} 4... b6 {[%clk 0:02:53.6]} 5. Nbd2 {[%clk 0:02:59.8]}
5... Bb7 {[%clk 0:02:53]} 6. a4 {[%clk 0:02:59.7]} 6... cxd4 {[%clk 0:02:46.3]}
7. exd4 {[%clk 0:02:59.5]} 7... d6 {[%clk 0:02:40.4]} 8. Bd3 {[%clk 0:02:56.1]}
8... Nbd7 {[%clk 0:02:39.9]} 9. O-O {[%clk 0:02:55.9]} 9... Be7 {[%clk
0:02:38.7]} 10. Re1 {[%clk 0:02:56]} 10... h6 {[%clk 0:02:25.9]} 11. Bh4 {[%clk
0:02:55.3]} 11... g5 {[%clk 0:02:24.5]} 12. Bg3 {[%clk 0:02:55.1]} 12... Nh5
{[%clk 0:02:18.3]} 13. a5 {[%clk 0:02:45.4]} 13... Nxg3 {[%clk 0:02:16.6]} 14.
hxg3 {[%clk 0:02:45.1]} 14... bxa5 {[%clk 0:02:12.1]} 15. c3 {[%clk 0:02:40.9]}
15... Qc7 {[%clk 0:02:03.6]} 16. Nc4 {[%clk 0:02:38]} 16... g4 {[%clk
0:01:59.1]} 17. Nfd2 {[%clk 0:02:30.7]} 17... h5 {[%clk 0:01:47]} 18. Nxa5
{[%clk 0:02:28.5]} 18... Nf6 {[%clk 0:01:30.7]} 19. Nxb7 {[%clk 0:02:13.3]}
19... Qxb7 {[%clk 0:01:29.5]} 20. Ne4 {[%clk 0:02:10.6]} 20... Nxe4 {[%clk
0:01:15.5]} 21. Bxe4 {[%clk 0:02:10.5]} 21... d5 {[%clk 0:01:14.7]} 22. Bd3
{[%clk 0:02:10.8]} 22... Qxb2 {[%clk 0:01:08.3]} 23. c4 {[%clk 0:01:44.9]} 23...
h4 {[%clk 0:00:57.6]} 24. Rb1 {[%clk 0:01:39.9]} 24... Qxd4 {[%clk 0:00:48.5]}
25. cxd5 {[%clk 0:01:34.6]} 25... Kf8 {[%clk 0:00:25.4]} 26. Re4 {[%clk
0:00:31.1]} 26... Qxd5 {[%clk 0:00:16]} 27. Rxg4 {[%clk 0:00:31.1]} 27... Rd8
{[%clk 0:00:15.8]} 28. Rb3 {[%clk 0:00:24.3]} 28... hxg3 {[%clk 0:00:14]} 29.
Rxg3 {[%clk 0:00:24.3]} 29... Bf6 {[%clk 0:00:10.7]} 30. Qg4 {[%clk 0:00:23.4]}
30... Qxb3 {[%clk 0:00:08.9]} 31. Bf1 {[%clk 0:00:17.8]} 31... Qb1 {[%clk
0:00:07.4]} 32. Qc4 {[%clk 0:00:07.3]} 32... Rd1 {[%clk 0:00:02.8]} 33. Qc8+
{[%clk 0:00:06.7]} 33... Bd8 {[%clk 0:00:02.4]} 34. Qc4 {[%clk 0:00:05.9]} 1-0

[Event "*** SCC Grand Prix: Titled Tuesday Blitz"]
[Site "Chess.com"]
[Date "2020.07.14"]
[Round "2"]
[White "Yurovskykh_Oleksandr"]
[Black "talaicito"]
[Result "1/2-1/2"]
[WhiteElo "2504"]
[BlackElo "2180"]
[TimeControl "180+1"]
[EndTime "10:18:05 PDT"]
[Termination "Game drawn by repetition"]

1. d4 {[%clk 0:03:00.9]} 1... e6 {[%clk 0:02:59.7]} 2. Nf3 {[%clk 0:02:48.5]}
2... f5 {[%clk 0:02:59.5]} 3. Bf4 {[%clk 0:02:40.7]} 3... Nf6 {[%clk 0:02:59.2]}
4. e3 {[%clk 0:02:41]} 4... g6 {[%clk 0:02:59]} 5. Be2 {[%clk 0:02:39]} 5... Bg7
{[%clk 0:02:59.3]} 6. O-O {[%clk 0:02:39.3]} 6... O-O {[%clk 0:02:59.7]} 7. c4
{[%clk 0:02:38]} 7... d6 {[%clk 0:02:59.9]} 8. h3 {[%clk 0:02:35.4]} 8... Nc6
{[%clk 0:02:59.8]} 9. Nc3 {[%clk 0:02:35.5]} 9... Qe7 {[%clk 0:02:59.3]} 10. Qc2
{[%clk 0:02:34]} 10... h6 {[%clk 0:02:58.8]} 11. Bh2 {[%clk 0:02:33.8]} 11... a5
{[%clk 0:02:14.5]} 12. Rac1 {[%clk 0:02:28.8]} 12... Bd7 {[%clk 0:02:09.2]} 13.
Rfd1 {[%clk 0:02:27.7]} 13... Rac8 {[%clk 0:02:08.4]} 14. a3 {[%clk 0:02:03.8]}
14... Rfe8 {[%clk 0:02:01.4]} 15. d5 {[%clk 0:01:20.8]} 15... Nd8 {[%clk
0:01:56.6]} 16. dxe6 {[%clk 0:01:19.6]} 16... Nxe6 {[%clk 0:01:51.6]} 17. Nd5
{[%clk 0:01:18.9]} 17... Qf7 {[%clk 0:01:48.9]} 18. Nxf6+ {[%clk 0:01:13.3]}
18... Bxf6 {[%clk 0:01:45.8]} 19. b4 {[%clk 0:01:13.6]} 19... axb4 {[%clk
0:00:58.2]} 20. axb4 {[%clk 0:01:14.5]} 20... Bc6 {[%clk 0:00:49.7]} 21. Nd4
{[%clk 0:00:59.8]} 21... Nxd4 {[%clk 0:00:48.2]} 22. exd4 {[%clk 0:01:00.7]}
22... Be4 {[%clk 0:00:48.3]} 23. Bd3 {[%clk 0:00:50.1]} 23... Bxd4 {[%clk
0:00:40.2]} 24. Bf4 {[%clk 0:00:37.9]} 24... g5 {[%clk 0:00:38.6]} 25. Bd2
{[%clk 0:00:38]} 25... Bxd3 {[%clk 0:00:35]} 26. Qxd3 {[%clk 0:00:38.9]} 26...
c5 {[%clk 0:00:35.1]} 27. bxc5 {[%clk 0:00:31.1]} 27... dxc5 {[%clk 0:00:35.1]}
28. Bc3 {[%clk 0:00:28.5]} 28... Rcd8 {[%clk 0:00:34.2]} 29. Bxd4 {[%clk
0:00:21]} 29... Rxd4 {[%clk 0:00:35.1]} 30. Qb3 {[%clk 0:00:21.3]} 30... Red8
{[%clk 0:00:33.6]} 31. Rxd4 {[%clk 0:00:18.4]} 31... Rxd4 {[%clk 0:00:33.3]} 32.
Rb1 {[%clk 0:00:17]} 32... Qc7 {[%clk 0:00:27.8]} 33. g3 {[%clk 0:00:14.2]}
33... f4 {[%clk 0:00:26.9]} 34. Qxb7 {[%clk 0:00:13.3]} 34... Qxb7 {[%clk
0:00:24.3]} 35. Rxb7 {[%clk 0:00:14.2]} 35... fxg3 {[%clk 0:00:24.2]} 36. fxg3
{[%clk 0:00:15.1]} 36... Rxc4 {[%clk 0:00:24.5]} 37. Rc7 {[%clk 0:00:14.1]}
37... Rc2 {[%clk 0:00:24]} 38. g4 {[%clk 0:00:07.4]} 38... c4 {[%clk 0:00:23.2]}
39. Kh1 {[%clk 0:00:07.9]} 39... c3 {[%clk 0:00:21.9]} 40. Kg1 {[%clk
0:00:08.4]} 40... Kf8 {[%clk 0:00:20]} 41. Kh1 {[%clk 0:00:07.9]} 41... Kg8
{[%clk 0:00:18.7]} 42. Kg1 {[%clk 0:00:08.2]} 42... Kf8 {[%clk 0:00:18.9]} 43.
Kh1 {[%clk 0:00:04.9]} 43... Kg8 {[%clk 0:00:19]} 1/2-1/2

[Event "*** SCC Grand Prix: Titled Tuesday Blitz"]
[Site "Chess.com"]
[Date "2020.07.14"]
[Round "2"]
[White "andy_rekt"]
[Black "Chessmasterzt"]
[Result "0-1"]
[WhiteElo "2293"]
[BlackElo "2592"]
[TimeControl "180+1"]
[EndTime "10:18:05 PDT"]
[Termination "Chessmasterzt won by resignation"]

1. d4 {[%clk 0:03:00.9]} 1... Nf6 {[%clk 0:02:58.8]} 2. c4 {[%clk 0:03:00.4]}
2... e6 {[%clk 0:02:59.3]} 3. Nc3 {[%clk 0:03:00.2]} 3... Bb4 {[%clk 0:02:59.7]}
4. e3 {[%clk 0:03:00.7]} 4... O-O {[%clk 0:02:58.8]} 5. Ne2 {[%clk 0:03:01]}
5... Re8 {[%clk 0:02:57.6]} 6. a3 {[%clk 0:03:00.4]} 6... Bf8 {[%clk 0:02:58]}
7. e4 {[%clk 0:02:59.1]} 7... d5 {[%clk 0:02:50.3]} 8. e5 {[%clk 0:02:59.2]}
8... Nfd7 {[%clk 0:02:37.7]} 9. h4 {[%clk 0:02:57.6]} 9... c5 {[%clk 0:02:34.3]}
10. Bg5 {[%clk 0:02:47.1]} 10... f6 {[%clk 0:02:25.7]} 11. exf6 {[%clk
0:02:45.9]} 11... gxf6 {[%clk 0:02:25.8]} 12. Be3 {[%clk 0:02:43.1]} 12... e5
{[%clk 0:02:20.7]} 13. Nxd5 {[%clk 0:02:24.6]} 13... cxd4 {[%clk 0:02:17.2]} 14.
Bd2 {[%clk 0:02:21.5]} 14... Nc5 {[%clk 0:02:17.5]} 15. Ng3 {[%clk 0:02:19.2]}
15... Be6 {[%clk 0:01:56.4]} 16. b4 {[%clk 0:02:11.9]} 16... Bxd5 {[%clk
0:01:38.7]} 17. cxd5 {[%clk 0:02:10.4]} 17... Ncd7 {[%clk 0:01:30.2]} 18. Bd3
{[%clk 0:02:09.5]} 18... Kh8 {[%clk 0:01:19.2]} 19. Bxh7 {[%clk 0:01:43.6]}
19... Kxh7 {[%clk 0:00:56.5]} 20. Qh5+ {[%clk 0:01:42]} 20... Kg8 {[%clk
0:00:56.4]} 21. Nf5 {[%clk 0:01:33.5]} 21... Re7 {[%clk 0:00:40.1]} 22. Rh3
{[%clk 0:01:26.8]} 22... Rh7 {[%clk 0:00:36.9]} 23. Qg6+ {[%clk 0:01:23.8]}
23... Kh8 {[%clk 0:00:36.4]} 24. Rg3 {[%clk 0:01:23.1]} 24... Bg7 {[%clk
0:00:19.1]} 25. Nxg7 {[%clk 0:01:02.7]} 25... Qg8 {[%clk 0:00:19.5]} 26. Nf5
{[%clk 0:00:33.1]} 26... Qxg6 {[%clk 0:00:17.4]} 27. Rxg6 {[%clk 0:00:34]} 27...
Na6 {[%clk 0:00:13.3]} 28. h5 {[%clk 0:00:18.4]} 28... Rg8 {[%clk 0:00:13]} 29.
Rxg8+ {[%clk 0:00:17.1]} 29... Kxg8 {[%clk 0:00:13.9]} 30. h6 {[%clk 0:00:17.7]}
30... Kf8 {[%clk 0:00:12.3]} 31. Rc1 {[%clk 0:00:17.6]} 31... Ke8 {[%clk
0:00:10.2]} 32. Rc8+ {[%clk 0:00:17.6]} 32... Kf7 {[%clk 0:00:09.8]} 33. g4
{[%clk 0:00:16.8]} 33... Kg6 {[%clk 0:00:09.8]} 34. Re8 {[%clk 0:00:12.3]} 34...
Nc7 {[%clk 0:00:08.2]} 35. d6 {[%clk 0:00:12.2]} 35... Nxe8 {[%clk 0:00:07.6]}
36. Ne7+ {[%clk 0:00:08]} 36... Kf7 {[%clk 0:00:07.4]} 37. Nd5 {[%clk 0:00:06]}
37... Nxd6 {[%clk 0:00:06.7]} 0-1